fUSD/lending_fUSD_20240913
["ID","MTS","AMOUNT","RATE_DAILY","PERIOD"]
[337923589,1726207832793,-500.0,0.00012955,2]
[337923590,1726207832803,-500.0,0.00012955,2]
[337923592,1726207832812,-500.0,0.00012955,2]
[337923594,1726207832821,-500.0,0.00012955,2]
[337923596,1726207832831,-954.6,0.00012955,2]
[337923598,1726207832840,-500.0,0.00012955,2]
[337923600,1726207832849,-2167.77,0.00012955,2]
[337923602,1726207832859,-500.0,0.00012955,2]
[337923604,1726207832868,-1160.48,0.00012955,2]
[337923606,1726207832878,-500.0,0.00012955,2]
[337923608,1726207832888,-500.0,0.00012955,2]
[337923610,1726207832898,-1233.86,0.00012955,2]
[337923612,1726207832907,-500.0,0.00012955,2]
[337923613,1726207832917,-500.0,0.00012955,2]
[337923615,1726207832926,-2268.65,0.00012955,2]
[337923617,1726207832935,-500.0,0.00012955,2]
[337923619,1726207832945,-500.0,0.00012955,2]
[337923621,1726207832954,-721.99,0.00012955,2]
[337923623,1726207832964,-638.65,0.00012955,2]
[337923625,1726207832974,-580.24,0.00012955,2]
[337923627,1726207832984,-1859.7,0.00012955,2]
[337923629,1726207832993,-500.0,0.00012955,2]
[337923631,1726207833002,-2169.41,0.00012955,2]
[337923633,1726207833012,-500.0,0.00012955,2]
[337923635,1726207833022,-500.0,0.00012955,2]
[337923637,1726207833031,-500.0,0.00012955,2]
[337923639,1726207833040,-500.0,0.00012955,2]
[337923641,1726207833050,-500.0,0.00012955,2]
[337923643,1726207833060,-500.0,0.00012955,2]
[337923645,1726207833070,-500.0,0.00012955,2]
[337923647,1726207833079,-542.41825579,0.00012955,2]
[337923649,1726207833089,-500.0,0.00012955,2]
[337923650,1726207833099,-2454.4,0.00012955,2]
[337923651,1726207833108,-1762.89,0.00012955,2]
[337923652,1726207833118,-500.0,0.00012955,2]
[337923653,1726207833127,-500.0,0.00012955,2]
[337923654,1726207833137,-316.2171631,0.00012955,2]
[337923655,1726207833146,-304.31212878,0.00012955,2]
[337923656,1726207833156,-2427.84,0.00012955,2]
[337923657,1726207833165,-527.98,0.00012955,2]
[337923658,1726207833175,-500.0,0.00012955,2]
[337923659,1726207833184,-500.0,0.00012955,2]
[337923660,1726207833193,-500.0,0.00012955,2]
[337923661,1726207833204,-500.0,0.00012955,2]
[337923662,1726207833213,-2449.58,0.00012955,2]
[337923663,1726207833223,-616.84,0.00012955,2]
[337923664,1726207833232,-500.0,0.00012955,2]
[337923665,1726207833241,-500.0,0.00012955,2]
[337923666,1726207833251,-1200.04,0.00012955,2]
[337923667,1726207833261,-500.0,0.00012955,2]
[337923668,1726207833270,-500.0,0.00012955,2]
[337923669,1726207833279,-500.0,0.00012955,2]
[337923670,1726207833289,-500.0,0.00012955,2]
[337923671,1726207833298,-500.0,0.00012955,2]
[337923672,1726207833308,-500.0,0.00012955,2]
[337923673,1726207833321,-500.0,0.00012955,2]
[337923674,1726207833331,-1843.23,0.00012955,2]
[337923675,1726207833341,-1049.64,0.00012955,2]
[337923676,1726207833350,-500.0,0.00012955,2]
[337923677,1726207833360,-500.0,0.00012955,2]
[337923678,1726207833370,-716.26,0.00012955,2]
[337923679,1726207833380,-1314.98,0.00012955,2]
[337923680,1726207833389,-706.12,0.00012955,2]
[337923681,1726207833401,-500.0,0.00012955,2]
[337923682,1726207833411,-500.0,0.00012955,2]
[337923683,1726207833420,-2731.45,0.00012955,2]
[337923684,1726207833429,-1334.63,0.00012955,2]
[337923685,1726207833439,-500.0,0.00012955,2]
[337923686,1726207833448,-3186.47,0.00012955,2]
[337923687,1726207833457,-500.0,0.00012955,2]
[337923688,1726207833466,-1915.16,0.00012955,2]
[337923689,1726207833475,-968.58,0.00012955,2]
[337923690,1726207833485,-500.0,0.00012955,2]
[337923691,1726207833494,-500.0,0.00012955,2]
[337923692,1726207833503,-500.0,0.00012955,2]
[337923693,1726207833513,-500.0,0.00012955,2]
[337923694,1726207833522,-1992.66,0.00012955,2]
[337923695,1726207833531,-565.35,0.00012955,2]
[337923696,1726207833540,-231.70567965,0.00012955,2]
[337923697,1726207833549,-500.0,0.00012955,2]
[337923698,1726207833559,-500.0,0.00012955,2]
[337923699,1726207833568,-500.0,0.00012955,2]
[337923700,1726207833578,-1809.16,0.00012955,2]
[337923701,1726207833587,-500.0,0.00012955,2]
[337923702,1726207833596,-500.0,0.00012955,2]
[337923703,1726207833606,-1266.41,0.00012955,2]
[337923704,1726207833615,-2970.17,0.00012955,2]
[337923705,1726207833624,-2176.07,0.00012955,2]
[337923706,1726207833633,-500.0,0.00012955,2]
[337923707,1726207833643,-1275.59,0.00012955,2]
[337923708,1726207833652,-500.0,0.00012955,2]
[337923709,1726207833662,-500.0,0.00012955,2]
[337923710,1726207833671,-500.0,0.00012955,2]
[337923711,1726207833680,-500.0,0.00012955,2]
[337923712,1726207833689,-810.78,0.00012955,2]
[337923713,1726207833699,-1552.2,0.00012955,2]
[337923714,1726207833708,-595.76,0.00012955,2]
[337923715,1726207833717,-1356.18,0.00012955,2]
[337923716,1726207833727,-2622.06,0.00012955,2]
[337923717,1726207833736,-2293.56,0.00012955,2]
[337923718,1726207833745,-500.61,0.00012955,2]
[337923719,1726207833755,-500.0,0.00012955,2]
[337923720,1726207833765,-1173.88,0.00012955,2]
[337923721,1726207833774,-1064.82972844,0.00012955,2]
[337923722,1726207833789,-72.85027156,0.00012955,2]
[337923723,1726207833798,-1233.14972844,0.00012955,2]
[337923724,1726207833810,-1335.53027156,0.00012955,2]
[337923725,1726207833819,-500.0,0.00012955,2]
[337923726,1726207833829,-1616.09,0.00012955,2]
[337923727,1726207833838,-134.49239844,0.00012955,2]
[337923728,1726207833854,-599.25760156,0.00012955,2]
[337923729,1726207833863,-1316.26,0.00012955,2]
[337923730,1726207833873,-717.99,0.00012955,2]
[337923731,1726207833882,-500.0,0.00012955,2]
[337923732,1726207833892,-1443.26,0.00012955,2]
[337923733,1726207833901,-500.0,0.00012955,2]
[337923734,1726207833911,-1309.7,0.00012955,2]
[337923735,1726207833920,-3118.53,0.00012955,2]
[337923736,1726207833930,-330.58420152,0.00012955,2]
[337923737,1726207833954,-458.99579848,0.00012955,2]
[337923738,1726207833964,-471.00415152,0.00012955,2]
[337923739,1726207833975,-1237.54584848,0.00012955,2]
[337923740,1726207833984,-2257.53,0.00012955,2]
[337923741,1726207833993,-500.0,0.00012955,2]
[337923742,1726207834003,-500.0,0.00012955,2]
[337923743,1726207834013,-1161.7,0.00012955,2]
[337923744,1726207834023,-986.29,0.00012955,2]
[337923745,1726207834033,-500.0,0.00012955,2]
[337923746,1726207834042,-500.0,0.00012955,2]
[337923747,1726207834051,-746.91069629,0.00012955,2]
[337923748,1726207834068,-301.80930371,0.00012955,2]
[337923749,1726207834078,-500.0,0.00012955,2]
[337923750,1726207834087,-1895.67,0.00012955,2]
[337923751,1726207834097,-6468.98,0.00012955,2]
[337923752,1726207834106,-500.0,0.00012955,2]
[337923753,1726207834116,-2877.77,0.00012955,2]
[337923754,1726207834125,-1269.49,0.00012955,2]
[337923755,1726207834135,-500.0,0.00012955,2]
[337923756,1726207834144,-500.0,0.00012955,2]
[337923757,1726207834153,-500.0,0.00012955,2]
[337923758,1726207834163,-500.0,0.00012955,2]
[337923759,1726207834173,-500.0,0.00012955,2]
[337923760,1726207834183,-1525.68,0.00012955,2]
[337923761,1726207834193,-500.0,0.00012955,2]
[337923762,1726207834202,-2115.23,0.00012955,2]
[337923763,1726207834212,-1856.39,0.00012955,2]
[337923764,1726207834221,-500.0,0.00012955,2]
[337923765,1726207834230,-1368.05,0.00012955,2]
[337923766,1726207834239,-500.0,0.00012955,2]
[337923767,1726207834249,-500.0,0.00012955,2]
[337923768,1726207834257,-873.78,0.00012955,2]
[337923769,1726207834267,-596.94,0.00012955,2]
[337923770,1726207834277,-874.05,0.00012955,2]
[337923771,1726207834286,-500.0,0.00012955,2]
[337923772,1726207834295,-672.26,0.00012955,2]
[337923773,1726207834305,-4238.17,0.00012955,2]
[337923774,1726207834314,-500.0,0.00012955,2]
[337923775,1726207834327,-961.06,0.00012955,2]
[337923776,1726207834337,-500.0,0.00012955,2]
[337923777,1726207834346,-3098.55,0.00012955,2]
[337923778,1726207834355,-500.0,0.00012955,2]
[337923779,1726207834365,-500.0,0.00012955,2]
[337923780,1726207834375,-2349.07,0.00012955,2]
[337923781,1726207834384,-500.0,0.00012955,2]
[337923782,1726207834395,-852.44,0.00012955,2]
[337923783,1726207834404,-4294.23,0.00012955,2]
[337923784,1726207834413,-1221.18,0.00012955,2]
[337923785,1726207834422,-3008.39,0.00012955,2]
[337923786,1726207834431,-970.89,0.00012955,2]
[337923787,1726207834440,-639.9,0.00012955,2]
[337923788,1726207834450,-52989.22,0.00012955,2]
[337923789,1726207834459,-2603.55,0.00012955,2]
[337923790,1726207834468,-500.0,0.00012955,2]
[337923791,1726207834477,-531.44,0.00012955,2]
[337923792,1726207834487,-500.0,0.00012955,2]
[337923793,1726207834496,-500.0,0.00012955,2]
[337923794,1726207834506,-500.0,0.00012955,2]
[337923795,1726207834515,-2296.17,0.00012955,2]
[337923796,1726207834524,-1260.77,0.00012955,2]
[337923797,1726207834533,-3637.82,0.00012955,2]
[337923798,1726207834542,-589.37,0.00012955,2]
[337923799,1726207834551,-500.0,0.00012955,2]
[337923800,1726207834560,-500.0,0.00012955,2]
[337923801,1726207834569,-2200.06,0.00012955,2]
[337923802,1726207834578,-1993.3,0.00012955,2]
[337923803,1726207834586,-916.57,0.00012955,2]
[337923804,1726207834595,-4126.05,0.00012955,2]
[337923805,1726207834604,-2309.1,0.00012955,2]
[337923806,1726207834614,-2285.15,0.00012955,2]
[337923807,1726207834623,-750.37,0.00012955,2]
[337923808,1726207834632,-1262.6,0.00012955,2]
[337923809,1726207834642,-1608.17,0.00012955,2]
[337923810,1726207834651,-1355.42,0.00012955,2]
[337923811,1726207834661,-922.17,0.00012955,2]
[337923812,1726207834670,-4241.39,0.00012955,2]
[337923813,1726207834680,-1119.11,0.00012955,2]
[337923814,1726207834689,-3010.58,0.00012955,2]
[337923815,1726207834699,-2961.85,0.00012955,2]
[337923816,1726207834708,-3606.13,0.00012955,2]
[337923817,1726207834718,-5372.06,0.00012955,2]
[337923818,1726207834727,-571.19,0.00012955,2]
[337923819,1726207834737,-500.0,0.00012955,2]
[337923820,1726207834746,-981.11,0.00012955,2]
[337923821,1726207834755,-914.29,0.00012955,2]
[337923822,1726207834766,-500.0,0.00012955,2]
[337923823,1726207834775,-785.15,0.00012955,2]
[337923824,1726207834784,-1266.26,0.00012955,2]
[337923825,1726207834793,-500.0,0.00012955,2]
[337923826,1726207834803,-500.0,0.00012955,2]
[337923827,1726207834812,-500.0,0.00012955,2]
[337923828,1726207834821,-34284.25,0.00012955,2]
[337923829,1726207834831,-6552.28,0.00012955,2]
[337923830,1726207834840,-500.0,0.00012955,2]
[337923831,1726207834849,-500.0,0.00012955,2]
[337923832,1726207834858,-3396.17,0.00012955,2]
[337923833,1726207834868,-5048.0,0.00012955,2]
[337923834,1726207834877,-2532.63,0.00012955,2]
[337923835,1726207834886,-379.18892189,0.00012955,2]
[337923836,1726207834895,-966.85,0.00012955,2]
[337923837,1726207834905,-3180.3,0.00012955,2]
[337923838,1726207834915,-2150.36,0.00012955,2]
[337923839,1726207834924,-2705.79,0.00012955,2]
[337923840,1726207834934,-906.34,0.00012955,2]
[337923841,1726207834943,-2247.98,0.00012955,2]
[337923842,1726207834952,-500.0,0.00012955,2]
[337923843,1726207834962,-550.95,0.00012955,2]
[337923844,1726207834971,-11539.97,0.00012955,2]
[337923845,1726207834980,-4848.46,0.00012955,2]
[337923846,1726207834990,-3007.15,0.00012955,2]
[337923847,1726207834999,-2177.1,0.00012955,2]
[337923848,1726207835008,-2051.18,0.00012955,2]
[337923849,1726207835018,-2518.74,0.00012955,2]
[337923850,1726207835027,-544.78,0.00012955,2]
[337923851,1726207835037,-500.0,0.00012955,2]
[337923852,1726207835046,-2426.19,0.00012955,2]
[337923853,1726207835055,-2498.51,0.00012955,2]
[337923854,1726207835064,-3383.13,0.00012955,2]
[337923855,1726207835074,-2318.53,0.00012955,2]
[337923856,1726207835083,-3188.29,0.00012955,2]
[337923857,1726207835091,-6251.33,0.00012955,2]
[337923858,1726207835101,-1005.33,0.00012955,2]
[337923859,1726207835110,-3388.78,0.00012955,2]
[337923860,1726207835120,-500.0,0.00012956,2]
[337923861,1726207835130,-500.0,0.00012956,2]
[337923862,1726207835138,-1597.26,0.00012956,2]
[337923863,1726207835147,-3138.6,0.00012956,2]
[337923864,1726207835156,-1123.5,0.00012956,2]
[337923865,1726207835165,-4459.04,0.00012956,2]
[337923866,1726207835174,-1655.33,0.00012956,2]
[337923867,1726207835185,-500.0,0.00012956,2]
[337923868,1726207835195,-2236.93,0.00012956,2]
[337923869,1726207835205,-2178.02,0.00012956,2]
[337923870,1726207835214,-1667.22,0.00012956,2]
[337923871,1726207835223,-2180.98,0.00012956,2]
[337923872,1726207835232,-2168.58,0.00012956,2]
[337923873,1726207835241,-500.0,0.00012956,2]
[337923874,1726207835250,-500.0,0.00012956,2]
[337923875,1726207835259,-1610.77,0.00012956,2]
[337923876,1726207835268,-1578.52,0.00012956,2]
[337923877,1726207835278,-991.16,0.00012956,2]
[337923878,1726207835287,-1755.89,0.00012956,2]
[337923879,1726207835296,-500.0,0.00012956,2]
[337923880,1726207835305,-4137.78,0.00012956,2]
[337923881,1726207835314,-710.74,0.00012956,2]
[337923882,1726207835327,-3611.82,0.00012956,2]
[337923883,1726207835336,-1582.96,0.00012956,2]
[337923884,1726207835345,-3006.27,0.00012956,2]
[337923885,1726207835354,-990.25,0.00012956,2]
[337923886,1726207835364,-1355.63,0.00012956,2]
[337923887,1726207835374,-2394.09,0.00012956,2]
[337923888,1726207835383,-2186.47,0.00012956,2]
[337923889,1726207835392,-500.0,0.00012956,2]
[337923890,1726207835401,-1174.7,0.00012956,2]
[337923891,1726207835411,-1755.23,0.00012956,2]
[337923892,1726207835420,-1827.91,0.00012956,2]
[337923893,1726207835429,-903.53,0.00012956,2]
[337923894,1726207835437,-500.0,0.00012956,2]
[337923895,1726207835446,-901.57,0.00012956,2]
[337923896,1726207835455,-849.96,0.00012956,2]
[337923897,1726207835465,-2008.45,0.00012956,2]
[337923898,1726207835474,-1026.83,0.00012956,2]
[337923899,1726207835483,-3173.88,0.00012956,2]
[337923900,1726207835493,-1917.63,0.00012956,2]
[337923901,1726207835502,-741.5,0.00012956,2]
[337923902,1726207835511,-500.0,0.00012956,2]
[337923903,1726207835531,-2883.01,0.00012956,2]
[337923904,1726207835540,-2842.0,0.00012956,2]
[337923905,1726207835549,-2235.92,0.00012956,2]
[337923906,1726207835558,-500.0,0.00012956,2]
[337923907,1726207835568,-866.48,0.00012956,2]
[337923908,1726207835578,-3749.94,0.00012956,2]
[337923909,1726207835586,-764.3,0.00012956,2]
[337923910,1726207835596,-2582.0,0.00012956,2]
[337923911,1726207835605,-1741.2,0.00012956,2]
[337923912,1726207835614,-1998.95,0.00012956,2]
[337923913,1726207835623,-500.0,0.00012956,2]
[337923914,1726207835632,-2252.07,0.00012956,2]
[337923915,1726207835641,-500.0,0.00012956,2]
[337923916,1726207835650,-2274.3,0.00012956,2]
[337923917,1726207835659,-4179.74,0.00012956,2]
[337923918,1726207835667,-500.0,0.00012956,2]
[337923919,1726207835676,-1853.09,0.00012956,2]
[337923920,1726207835686,-500.0,0.00012956,2]
[337923921,1726207835695,-500.0,0.00012956,2]
[337923922,1726207835705,-776.79,0.00012956,2]
[337923923,1726207835714,-1622.46,0.00012956,2]
[337923924,1726207835723,-2217.17,0.00012956,2]
[337923925,1726207835733,-1359.11,0.00012956,2]
[337923926,1726207835742,-500.0,0.00012956,2]
[337923927,1726207835752,-1261.5,0.00012956,2]
[337923928,1726207835761,-1258.27,0.00012956,2]
[337923929,1726207835772,-709.66,0.00012956,2]
[337923930,1726207835781,-2888.25,0.00012956,2]
[337923931,1726207835791,-574.29,0.00012956,2]
[337923932,1726207835800,-1568.79,0.00012956,2]
[337923933,1726207835811,-2177.36,0.00012956,2]
[337923934,1726207835820,-238.90834825,0.00012956,2]
[337923935,1726207835977,-500.0,0.00012957,2]
[337923936,1726207835986,-500.0,0.00012957,2]
[337923937,1726207835995,-500.0,0.00012957,2]
[337923938,1726207836005,-500.0,0.00012957,2]
[337923939,1726207836014,-500.0,0.00012957,2]
[337923940,1726207836023,-1978.11,0.00012957,2]
[337923941,1726207836032,-500.0,0.00012957,2]
[337923942,1726207836043,-500.0,0.00012957,2]
[337923943,1726207836052,-500.0,0.00012957,2]
[337923944,1726207836062,-2028.17,0.00012957,2]
[337923945,1726207836071,-2698.15,0.00012957,2]
[337923946,1726207836080,-500.0,0.00012957,2]
[337923947,1726207836089,-1619.86,0.00012957,2]
[337923948,1726207836098,-1586.6,0.00012957,2]
[337923949,1726207836107,-542.62919787,0.00012957,2]
[337923950,1726207836117,-500.0,0.00012957,2]
[337923951,1726207836127,-814.02,0.00012957,2]
[337923952,1726207836135,-1719.9,0.00012957,2]
[337923953,1726207836144,-646.24,0.00012957,2]
[337923954,1726207836153,-940.8,0.00012957,2]
[337923955,1726207836163,-500.0,0.00012957,2]
[337923956,1726207836172,-500.0,0.00012957,2]
[337923957,1726207836182,-2780.02,0.00012957,2]
[337923958,1726207836191,-991.55,0.00012957,2]
[337923959,1726207836200,-3182.62,0.00012957,2]
[337923960,1726207836209,-1820.52,0.00012957,2]
[337923961,1726207836219,-4033.44,0.00012957,2]
[337923962,1726207836228,-541.76,0.00012957,2]
[337923963,1726207836238,-2662.49,0.00012957,2]
[337923964,1726207836247,-697.73,0.00012957,2]
[337923965,1726207836256,-2366.24,0.00012957,2]
[337923966,1726207836268,-500.0,0.00012957,2]
[337923967,1726207836277,-500.0,0.00012957,2]
[337923968,1726207836286,-2066.88,0.00012957,2]
[337923969,1726207836295,-3032.62,0.00012957,2]
[337923970,1726207836305,-500.0,0.00012957,2]
[337923971,1726207836314,-3440.83,0.00012957,2]
[337923972,1726207836327,-587.37,0.00012957,2]
[337923973,1726207836336,-500.0,0.00012957,2]
[337923974,1726207836345,-613.56659379,0.00012957,2]
[337923975,1726207836360,-535.68340621,0.00012957,2]
[337923976,1726207836369,-219.21359379,0.00012957,2]
[337923977,1726207836380,-280.78640621,0.00012957,2]
[337923978,1726207836390,-1398.27553641,0.00012957,2]
[337923979,1726207836401,-609.51446359,0.00012957,2]
[337923980,1726207836410,-500.0,0.00012957,2]
[337923981,1726207836419,-500.0,0.00012957,2]
[337923982,1726207836428,-535.29,0.00012957,2]
[337923983,1726207836438,-500.0,0.00012957,2]
[337923984,1726207836447,-657.64205021,0.00012957,2]
[337923985,1726207836475,-1230.01759857,0.00012957,2]
[337923986,1726207836487,-2013.16035122,0.00012957,2]
[337923987,1726207836496,-501.56630376,0.00012957,2]
[337923988,1726207836508,-62.79369624,0.00012957,2]
[337923989,1726207836518,-887.43,0.00012957,2]
[337923990,1726207836527,-823.78,0.00012957,2]
[337923991,1726207836537,-500.0,0.00012957,2]
[337923992,1726207836546,-1971.82458,0.0001296,2]
[337923993,1726207836555,-500.0,0.00012973,2]
[337923994,1726207836565,-1481.63,0.00013,2]
[337923995,1726207836574,-306.98,0.00013,2]
[337923996,1726207836583,-1000.28,0.00013,2]
[337923997,1726207836592,-1261.0,0.00013068,2]
[337923998,1726207836601,-856.758,0.00013068,2]
[337923999,1726207836611,-932.0,0.00013068,2]
[337924000,1726207836620,-810.0,0.00013068,2]
[337924001,1726207836630,-558.0,0.00013068,2]
[337924002,1726207836639,-1901.0,0.00013068,2]
[337924003,1726207836648,-553.0,0.00013068,2]
[337924004,1726207836657,-806.0,0.00013068,2]
[337924005,1726207836666,-248.0,0.00013068,2]
[337924006,1726207836675,-3344.0,0.00013068,2]
[337924007,1726207836686,-1125.0,0.00013068,2]
[337924008,1726207836695,-2987.02241865,0.00013087,2]
[337924009,1726207836707,-230.01658135,0.00013087,2]
[337924010,1726207836716,-150.0,0.00013087,2]
[337924011,1726207836726,-1035.41967883,0.00013087,2]
[337924012,1726207836737,-43.58032117,0.00013087,2]
[337924013,1726207836747,-1971.82459,0.0001312,2]
[337924014,1726207836756,-158.56691584,0.00013129,2]
[337924015,1726207836765,-153.61647769,0.00013129,2]
[337924016,1726207836775,-160.74645547,0.00013131,2]
[337924017,1726207836784,-151.0,0.00013151,2]
[337924018,1726207836793,-82.79028712,0.00013153,2]
[337924019,1726207837077,232.28,0.00010959,2]
[337924020,1726207838092,-4236.72490095,0.00012854,2]
[337924021,1726207838103,-16741.38379213,0.00012854,2]
[337924022,1726207838115,-1116.50326628,0.00012854,2]
[337924023,1726207838126,-2200.0,0.00012854,2]
[337924024,1726207838217,-844.06342413,0.00012854,2]
[337924025,1726207838228,-761.91657587,0.00012954,2]
[337924026,1726207838244,-135.12342413,0.00012954,2]
[337924027,1726207838253,-67.20971288,0.00013153,2]
[337924028,1726207838263,-150.0,0.00013153,2]
[337924029,1726207838273,-150.0,0.00013153,2]
[337924030,1726207838282,-150.0,0.00013153,2]
[337924031,1726207838291,-150.0,0.00013153,2]
[337924032,1726207838301,-150.0,0.00013153,2]
[337924033,1726207838310,-150.0,0.00013153,2]
[337924034,1726207838322,-298.03,0.00013153,2]
[337924035,1726207838331,-150.76,0.00013218,2]
[337924036,1726207838342,-500.0,0.00013227,2]
[337924037,1726207838351,-740.86,0.00013227,2]
[337924038,1726207838361,-577.5,0.00013228,2]
[337924039,1726207838371,-3361.86383169,0.00013228,2]
[337924040,1726207838382,-712.43225591,0.00013228,2]
[337924041,1726207838394,-1495.67112458,0.00013228,2]
[337924042,1726207838410,-3007.82,0.00012955,2]
[337924043,1726207838420,-3149.26148719,0.00013228,2]
[337924044,1726207838431,-2549.55900004,0.00013228,2]
[337924045,1726207838442,-686.50000001,0.00013228,2]
[337924063,1726207838737,-2739.25139516,0.00013228,2]
[337924066,1726207838749,-484.43905378,0.00013228,2]
[337924218,1726207840208,-374.07477111,0.00012953,2]
[337924221,1726207840220,-125.92522889,0.00012953,2]
[337924223,1726207840230,-2723.58,0.00012955,2]
[337924225,1726207840239,-620.67770069,0.00013081,2]
[337924227,1726207840249,-291.88343201,0.00013081,2]
[337924229,1726207840260,-500.0,0.00013081,2]
[337924231,1726207840272,-4285.7862628,0.00013081,2]
[337924241,1726207840362,-5568.99582229,0.00013081,2]
[337924244,1726207840379,-462.7030002,0.00013081,2]
[337924249,1726207840421,-1533.49755006,0.00013081,2]
[337924251,1726207840432,-5719.53545259,0.00013081,2]
[337924593,1726207844003,-508.350001,0.00012955,2]
[337924594,1726207844014,-708.239999,0.00012955,2]
[337924596,1726207844023,-170.938146,0.00012955,2]
[337924598,1726207844034,-329.061854,0.00012955,2]
[337924600,1726207844043,-500.0,0.00012955,2]
[337924602,1726207844052,-604.70118978,0.00012956,2]
[337924604,1726207844067,-401.47892665,0.00012956,2]
[337924606,1726207844081,-600.82219392,0.00012956,2]
[337924609,1726207844113,-583.19635619,0.00012507,2]
[337924611,1726207844122,-336.65768965,0.00012956,2]
[337924613,1726207844132,-297.65270479,0.00013081,2]
[337924615,1726207844143,-2564.133,0.00013081,2]
[337924617,1726207844154,-3293.81045797,0.00013081,2]
[337924618,1726207844164,-500.0,0.00013227,2]
[337924620,1726207844173,-32177.92185164,0.00013228,2]
[337924622,1726207844183,-6669.17,0.00013228,2]
[337924624,1726207844192,-2780.8,0.00013228,2]
[337924625,1726207844201,-500.0,0.00013228,2]
[337924627,1726207844210,-1371.45,0.00013228,2]
[337924629,1726207844219,-1644.43,0.00013228,2]
[337924631,1726207844229,-601.64,0.00013228,2]
[337924633,1726207844238,-805.65,0.00013228,2]
[337924634,1726207844247,-2471.22,0.00013228,2]
[337924636,1726207844257,-3998.73,0.00013228,2]
[337924638,1726207844267,-1893.7,0.00013228,2]
[337924640,1726207844277,-2685.85,0.00013228,2]
[337924642,1726207844286,-2355.68,0.00013228,2]
[337924643,1726207844296,-1290.2,0.00013228,2]
[337924645,1726207844305,-3090.69,0.00013228,2]
[337924647,1726207844315,-10575.95,0.00013228,2]
[337924649,1726207844328,-2228.93,0.00013228,2]
[337924651,1726207844337,-1924.11,0.00013228,2]
[337924653,1726207844347,-3999.61,0.00013228,2]
[337924654,1726207844356,-2756.63,0.00013228,2]
[337924656,1726207844366,-2039.83,0.00013228,2]
[337924658,1726207844376,-4382.07,0.00013228,2]
[337924660,1726207844384,-2563.61,0.00013228,2]
[337924662,1726207844394,-697.17,0.00013228,2]
[337924663,1726207844403,-3668.01,0.00013228,2]
[337924665,1726207844413,-15000.85,0.00013228,2]
[337924667,1726207844422,-1017.52,0.00013228,2]
[337924669,1726207844432,-2679.4,0.00013228,2]
[337924671,1726207844441,-2417.39,0.00013228,2]
[337924673,1726207844451,-39510.23,0.00013228,2]
[337924674,1726207844460,-6415.55,0.00013228,2]
[337924676,1726207844469,-2131.91,0.00013228,2]
[337924678,1726207844478,-2033.36,0.00013228,2]
[337924680,1726207844488,-2847.91,0.00013228,2]
[337924682,1726207844497,-2357.11,0.00013228,2]
[337924684,1726207844507,-1449.8,0.00013228,2]
[337924685,1726207844515,-8256.5,0.00013228,2]
[337924687,1726207844525,-500.0,0.00013228,2]
[337924689,1726207844534,-9236.73,0.00013228,2]
[337924691,1726207844543,-1373.91,0.00013228,2]
[337924693,1726207844553,-3499.59,0.00013228,2]
[337924694,1726207844562,-1033.06,0.00013228,2]
[337924696,1726207844571,-2381.27,0.00013228,2]
[337924698,1726207844580,-3127.01,0.00013228,2]
[337924700,1726207844588,-3835.54,0.00013228,2]